bitfinex/quotes_BTCUSD_20241123
["timestamp","ask_amount","ask_price","bid_price","bid_amount"]
[1732387813440,0.0482,97695.0,97662.0,0.15]
[1732387813675,0.0778,97685.0,97662.0,0.15]
[1732387814332,0.0778,97685.0,97662.0,0.29246422]
[1732387814557,0.0778,97685.0,97663.0,0.10201427]
[1732387814770,0.0778,97685.0,97670.0,0.07915007]
[1732387815275,0.0778,97685.0,97671.0,0.0469]
[1732387815488,0.0778,97685.0,97671.0,0.1969]
[1732387815725,0.0778,97685.0,97675.0,0.07915007]
[1732387816160,0.0778,97685.0,97672.0,0.15]
[1732387816401,0.0482,97695.0,97676.0,0.2325]
[1732387816635,0.0482,97702.0,97680.0,0.07915007]
[1732387816848,0.0482,97702.0,97681.0,0.00953342]
[1732387817755,0.0482,97702.0,97682.0,0.0469]
[1732387817980,0.0482,97702.0,97683.0,0.00953342]
[1732387818925,0.0017184,97719.0,97683.0,0.00953342]
[1732387819139,0.0482,97708.0,97683.0,0.00953342]
[1732387819584,0.0778,97705.0,97683.0,0.00953342]
[1732387821155,0.0778,97705.0,97682.0,0.0469]
[1732387822517,0.0778,97705.0,97680.0,0.04312362]
[1732387823421,0.0482,97696.0,97680.0,0.04312362]
[1732387823651,0.0482,97696.0,97680.0,0.05691969]
[1732387825252,0.0482,97696.0,97681.0,0.01795773]
[1732387831980,0.0482,97696.0,97684.0,0.07915007]
[1732387832199,0.0482,97696.0,97685.0,0.01349336]
[1732387834701,0.0482,97696.0,97684.0,0.07915007]
[1732387836280,0.0482,97696.0,97680.0,0.07915007]
[1732387839701,0.0799188,97694.0,97680.0,0.07915007]
[1732387843997,0.0799188,97694.0,97680.0,0.0017176]
[1732387845101,0.04650631,97694.0,97680.0,0.0017176]
[1732387846478,0.04650631,97694.0,97676.0,0.04096327]
[1732387846923,0.04650631,97694.0,97680.0,0.07915007]
[1732387847873,0.04650631,97694.0,97674.0,0.023]
[1732387848115,0.04650631,97694.0,97673.0,0.10201427]
[1732387848116,0.0453,97693.0,97680.0,0.07915007]
[1732387848353,0.039751,97693.0,97680.0,0.07915007]
[1732387848589,0.03951389,97693.0,97680.0,0.07915007]
[1732387849509,0.03951389,97693.0,97678.0,0.00589108]
[1732387849734,0.03951389,97693.0,97680.0,0.00589108]
[1732387850266,0.03951389,97693.0,97671.0,0.02034505]
[1732387850488,0.03951389,97693.0,97672.0,0.04490419]
[1732387852085,0.03951389,97693.0,97680.0,0.07915007]
[1732387853234,0.03591163,97693.0,97680.0,0.07915007]
[1732387853449,0.03748672,97694.0,97680.0,0.07915007]
[1732387854125,0.0017184,97719.0,97690.0,0.07915007]
[1732387854361,0.10201427,97718.0,97680.0,0.07915007]
[1732387855702,0.0008588,97694.0,97680.0,0.07915007]
[1732387856364,0.10201427,97718.0,97700.0,0.07915007]
[1732387856606,0.0492,97717.0,97700.0,0.07915007]
[1732387856824,0.0492,97715.0,97700.0,0.07915007]
[1732387857043,0.0492,97713.0,97700.0,0.07915007]
[1732387857278,0.0492,97713.0,97690.0,0.07915007]
[1732387857511,0.0492,97713.0,97700.0,0.07915007]
[1732387858040,0.0492,97713.0,97690.0,0.07915007]
[1732387859408,0.0492,97713.0,97700.0,0.07915007]
[1732387859871,0.02990438,97713.0,97701.0,0.00462822]
[1732387860376,0.01733243,97714.0,97701.0,0.00462822]
[1732387860617,0.2,97758.0,97701.0,0.00462822]
[1732387860618,0.002,97758.0,97701.0,0.05052822]
[1732387860831,0.10201427,97739.0,97701.0,0.05052822]
[1732387861062,0.10201427,97739.0,97710.0,0.07915007]
[1732387861283,0.10201427,97739.0,97711.0,0.00462822]
[1732387863155,0.0492,97738.0,97711.0,0.08692822]
[1732387863375,0.0764,97736.0,97720.0,0.07915007]
[1732387863609,0.15121427,97738.0,97728.0,0.07915007]
[1732387863610,0.0492,97738.0,97728.0,0.07915007]
[1732387863846,0.0574,97742.0,97729.0,0.00462822]
[1732387864301,0.0492,97744.0,97729.0,0.00462822]
[1732387864515,0.04902593,97744.0,97729.0,0.00462822]
[1732387864724,0.0008591,97750.0,97730.0,0.07915007]
[1732387864936,0.10201427,97749.0,97731.0,0.02067088]
[1732387865616,0.0008591,97750.0,97731.0,0.02067088]
[1732387865617,0.08000917,97750.0,97731.0,0.02067088]
[1732387865838,0.10201427,97749.0,97729.0,0.04183444]
[1732387866085,0.15830014,97741.0,97729.0,0.04183444]
[1732387866308,0.15830014,97741.0,97680.0,0.01064019]
[1732387866309,0.10201427,97740.0,97705.0,0.15]
[1732387866534,0.07915007,97730.0,97726.0,0.04161891]
[1732387866809,0.10201427,97729.0,97695.0,0.0823]
[1732387867023,0.07915007,97720.0,97705.0,0.04173496]
[1732387867246,0.0824,97719.0,97689.0,0.082]
[1732387867473,0.0457,97718.0,97711.0,0.0017172]
[1732387870421,0.0457,97718.0,97711.0,0.04231697]
[1732387870694,0.10201427,97717.0,97711.0,0.04231697]
[1732387870950,0.1281,97716.0,97711.0,0.0017172]
[1732387871162,0.10201427,97715.0,97711.0,0.0017172]
[1732387871373,0.0824,97714.0,97711.0,0.0017172]
[1732387871595,0.10201427,97713.0,97711.0,0.0017172]
[1732387871840,0.0824,97712.0,97711.0,0.0017172]
[1732387872070,0.18441427,97712.0,97711.0,0.0017172]
[1732387872747,0.0824,97712.0,97711.0,0.04334896]
[1732387872981,0.0824,97732.0,97692.0,0.10906546]
[1732387873437,0.2,97730.0,97693.0,0.12501427]
[1732387873672,0.10201427,97729.0,97693.0,0.12501427]
[1732387874640,0.0457,97728.0,97693.0,0.12501427]
[1732387874873,0.10201427,97727.0,97690.0,0.12034676]
[1732387876055,0.0824,97726.0,97690.0,0.12034676]
[1732387876282,0.0824,97724.0,97681.0,0.023]
[1732387876501,0.2,97729.0,97681.0,0.023]
[1732387876502,0.0824,97722.0,97682.0,0.10201427]
[1732387876726,0.12034676,97710.0,97682.0,0.10201427]
[1732387876965,0.23011427,97709.0,97680.0,0.040463]
[1732387877463,0.0824,97707.0,97680.0,0.040463]
[1732387877714,0.10201427,97706.0,97680.0,0.040463]
[1732387878595,0.0457,97705.0,97680.0,0.040463]
[1732387878811,0.10201427,97704.0,97680.0,0.040463]
[1732387879045,0.10201427,97704.0,97690.0,0.0008586]
[1732387880023,0.09967508,97704.0,97690.0,0.0008586]
[1732387880242,0.09743208,97704.0,97690.0,0.0008586]
[1732387880469,0.09743208,97704.0,97537.0,0.58386062]
[1732387880470,0.0973363,97704.0,97661.0,0.03609386]
[1732387880688,0.0824,97703.0,97662.0,0.12501427]
[1732387880909,0.10201427,97702.0,97662.0,0.12501427]
[1732387881161,0.0824,97701.0,97662.0,0.12501427]
[1732387881404,0.0824,97698.0,97676.0,0.023]
[1732387881856,0.0824,97698.0,97674.0,0.04087]
[1732387882075,0.0824,97698.0,97675.0,0.023]
[1732387883499,0.05107799,97698.0,97675.0,0.023]
[1732387883739,0.04588582,97698.0,97675.0,0.023]
[1732387884827,0.14771427,97697.0,97675.0,0.023]
[1732387885059,0.0457,97696.0,97663.0,0.15]
[1732387885315,0.0457,97694.0,97672.0,0.040872]
[1732387885515,0.0457,97693.0,97672.0,0.040872]
[1732387886658,0.0457,97693.0,97663.0,0.10201427]
[1732387886659,0.10201427,97692.0,97662.0,0.04204273]
[1732387886664,0.0457,97691.0,97665.0,0.040874]
[1732387886909,0.0771,97689.0,97665.0,0.040874]
[1732387887127,0.10201427,97688.0,97665.0,0.040874]
[1732387890855,0.10201427,97688.0,97665.0,0.08150033]
[1732387891078,0.0771,97686.0,97665.0,0.08150033]
[1732387891304,0.10201427,97685.0,97665.0,0.08150033]
[1732387892024,0.10201427,97685.0,97665.0,0.08235933]
[1732387892489,0.10201427,97685.0,97655.0,0.10201427]
[1732387892730,0.10201427,97685.0,97658.0,0.040875]
[1732387892962,0.0771,97683.0,97659.0,0.023]
[1732387893428,0.0771,97683.0,97658.0,0.023]
[1732387893656,0.0465,97682.0,97658.0,0.023]
[1732387897480,0.0465,97682.0,97658.0,0.03133122]
[1732387897713,0.0465,97682.0,97661.0,0.173]
[1732387898200,0.0465,97682.0,97663.0,0.023]
[1732387898423,0.0465,97682.0,97664.0,0.00833122]
[1732387903774,0.0465,97682.0,97664.0,0.15833122]
[1732387904247,0.0465,97682.0,97664.0,0.15919032]
[1732387905607,0.02932492,97682.0,97664.0,0.00919032]
[1732387906036,0.02932492,97682.0,97664.0,0.15919032]
[1732387906461,0.02932492,97682.0,97664.0,0.56356035]
[1732387906704,0.02932492,97682.0,97670.0,0.07900245]
[1732387907633,0.02932492,97682.0,97664.0,0.56356035]
[1732387908491,0.02932492,97682.0,97666.0,0.15]
[1732387909164,0.01557815,97683.0,97670.0,0.07900245]
[1732387911444,0.01557815,97683.0,97668.0,0.023]
[1732387912125,0.0487,97682.0,97668.0,0.023]
[1732387912342,0.0487,97682.0,97670.0,0.07900245]
[1732387912591,0.02230865,97682.0,97670.0,0.07900245]
[1732387912817,0.02230865,97682.0,97671.0,0.00987574]
[1732387915455,0.02230865,97682.0,97672.0,0.023]
[1732387916996,0.02402645,97682.0,97672.0,0.023]
[1732387919058,0.02402645,97682.0,97673.0,0.40508316]
[1732387919276,0.02402645,97682.0,97675.0,0.15]
[1732387919504,0.02402645,97682.0,97676.0,0.15]
[1732387920606,0.00307645,97682.0,97676.0,0.15]
[1732387920825,0.00307645,97682.0,97675.0,0.15]
[1732387921275,0.01557815,97683.0,97675.0,0.15]
[1732387921500,0.01557815,97683.0,97675.0,0.5556943]
[1732387922629,0.01557815,97683.0,97679.0,0.15]
[1732387923313,0.01557815,97683.0,97679.0,0.5556943]
[1732387923542,0.01557815,97683.0,97681.0,0.15]
[1732387924444,0.0456,97684.0,97683.0,0.15]
[1732387924671,0.0456,97684.0,97683.0,0.24794492]
[1732387925447,0.0456,97684.0,97683.0,0.09794492]
[1732387925666,0.0456,97684.0,97683.0,0.09667192]
[1732387926349,0.03742403,97684.0,97683.0,0.09667192]
[1732387927009,0.03742403,97684.0,97683.0,0.09456185]
[1732387927230,0.03742403,97684.0,97683.0,0.13642519]
[1732387927461,0.11462403,97684.0,97683.0,0.28642519]
[1732387929733,0.11634183,97684.0,97683.0,0.28642519]
[1732387930400,0.2183561,97684.0,97683.0,0.28642519]
[1732387930641,0.2183561,97684.0,97683.0,0.13642519]
[1732387931844,0.4183561,97684.0,97683.0,0.13642519]
[1732387933431,0.4183561,97684.0,97683.0,0.09344376]
[1732387933659,0.4183561,97684.0,97649.0,0.08705316]
[1732387933660,0.1255,97680.0,97649.0,0.08705316]
[1732387933896,0.0772,97676.0,97649.0,0.08705316]
[1732387934105,0.0483,97673.0,97649.0,0.04065316]
[1732387934321,0.17921427,97672.0,97649.0,0.04065316]
[1732387934532,0.17921427,97672.0,97645.0,0.023]
[1732387936377,0.17921427,97672.0,97645.0,0.02593779]
[1732387936627,0.17921427,97672.0,97646.0,0.00587558]
[1732387936834,0.18049408,97672.0,97646.0,0.00587558]
[1732387937048,0.17921427,97672.0,97646.0,0.00587558]
[1732387939499,0.07900245,97660.0,97644.0,0.04202997]
[1732387939761,0.22781427,97659.0,97644.0,0.04202997]
[1732387939974,0.22781427,97659.0,97630.0,0.07900245]
[1732387939975,0.14701427,97659.0,97630.0,0.08950205]
[1732387940198,0.0808,97658.0,97630.0,0.08950205]
[1732387940444,0.10201427,97657.0,97630.0,0.08950205]
[1732387940667,0.10201427,97657.0,97631.0,0.173]
[1732387941340,0.0808,97655.0,97631.0,0.173]
[1732387941568,0.10201427,97654.0,97631.0,0.173]
[1732387942022,0.10201427,97654.0,97631.0,0.023]
[1732387942250,0.10201427,97654.0,97645.0,0.0008591]
[1732387943191,0.045,97652.0,97645.0,0.0008591]
[1732387943424,0.0808,97650.0,97645.0,0.0008591]
[1732387943649,0.0808,97648.0,97645.0,0.0008591]
[1732387943875,0.18281427,97648.0,97645.0,0.0008591]
[1732387944385,0.0808,97647.0,97645.0,0.0008591]
[1732387945051,0.0808,97647.0,97626.0,0.023]
[1732387945515,0.10201427,97646.0,97622.0,12.11605158]
[1732387946585,0.10201427,97646.0,97630.0,0.07900245]
[1732387950341,0.09836564,97646.0,97630.0,0.07900245]
[1732387953508,0.09836564,97646.0,97623.0,0.15]
[1732387955150,0.09836564,97646.0,97630.0,0.0008591]
[1732387955593,0.09836564,97646.0,97622.0,12.00576191]
[1732387955869,0.09836564,97646.0,97622.0,11.81563568]
[1732387956097,0.09059223,97646.0,97622.0,11.81563568]
[1732387957501,0.0793,97645.0,97622.0,11.81563568]
[1732387957730,0.0486,97644.0,97622.0,11.81563568]
[1732387957951,0.0793,97643.0,97622.0,11.76933568]
[1732387958679,0.0793,97641.0,97622.0,11.76933568]
[1732387958892,0.00128015,97656.0,97622.0,11.76933568]
[1732387958893,0.0793,97638.0,97622.0,11.76933568]
[1732387962498,0.0793,97638.0,97622.0,11.56229187]
[1732387963848,0.2,97657.0,97628.0,0.07900245]
[1732387964068,0.10201427,97656.0,97628.0,0.07900245]
[1732387964289,0.10201427,97656.0,97629.0,0.02151071]
[1732387964524,0.10329431,97656.0,97629.0,0.02151071]
[1732387966958,0.1296,97655.0,97629.0,0.02151071]
[1732387967196,0.10201427,97654.0,97629.0,0.02151071]
[1732387968056,0.10201427,97654.0,97630.0,0.0495]
[1732387972542,0.10201427,97654.0,97630.0,0.12850245]
[1732387973735,0.10201427,97654.0,97630.0,0.12350245]
[1732387974158,0.10201427,97654.0,97630.0,0.11456704]
[1732387974371,0.10201427,97654.0,97631.0,0.075]
[1732387975502,0.10201427,97654.0,97640.0,0.07900245]
[1732387975726,0.1296,97655.0,97640.0,0.07900245]
[1732387975727,0.07134406,97655.0,97645.0,0.07900245]
[1732387975944,0.0017186,97656.0,97645.0,0.07900245]
[1732387976157,0.2,97665.0,97650.0,0.07900245]
[1732387976369,0.10201427,97664.0,97650.0,0.07900245]
[1732387978681,0.10201427,97664.0,97650.0,0.12106796]
[1732387980332,0.10373287,97664.0,97650.0,0.12106796]
[1732387980968,0.0017186,97664.0,97650.0,0.12106796]
[1732387983418,0.0017182,97672.0,97651.0,0.0495]
[1732387983624,0.10201427,97671.0,97660.0,0.07900245]
[1732387988022,0.10201427,97671.0,97661.0,0.047]
[1732387988267,0.13600041,97681.0,97670.0,0.07900245]
[1732387988503,0.10201427,97680.0,97670.0,0.07900245]
[1732387988750,0.10201427,97683.0,97670.0,0.07900245]
[1732387988977,0.10186048,97683.0,97671.0,0.047]
[1732387989435,0.0017182,97688.0,97671.0,0.047]
[1732387991437,0.0017182,97688.0,97672.0,0.0793]
[1732387994377,0.0017182,97688.0,97678.0,0.07900245]
[1732387994636,0.26270041,97698.0,97678.0,0.07900245]
[1732387994637,0.1267,97698.0,97678.0,0.07900245]
[1732387994861,0.10201427,97697.0,97679.0,0.0493]
[1732387997542,0.10201427,97697.0,97680.0,0.0793]
[1732387999117,0.0459,97703.0,97687.0,0.07900245]
[1732387999340,0.13600041,97709.0,97689.0,0.0793]
[1732387999572,0.10201427,97708.0,97689.0,0.0793]
[1732388001108,0.10201427,97708.0,97689.0,0.12160704]
[1732388004599,0.10201427,97708.0,97691.0,0.0493]
[1732388005279,0.10373207,97708.0,97691.0,0.0493]
[1732388005721,0.10373207,97708.0,97690.0,0.07900245]
[1732388007833,0.10373207,97708.0,97698.0,0.07900245]
[1732388007834,0.08594207,97708.0,97698.0,0.07900245]
[1732388008058,0.13727974,97720.0,97698.0,0.07900245]
[1732388008288,0.10201427,97719.0,97698.0,0.07900245]
[1732388008513,0.10201427,97719.0,97690.0,0.07900245]
[1732388008514,0.128,97710.0,97690.0,0.07900245]
[1732388008778,0.128,97710.0,97690.0,1.07900245]
[1732388009956,0.10329355,97709.0,97690.0,1.0]
[1732388011317,0.10329355,97709.0,97690.0,0.74528749]
[1732388013161,0.10329355,97709.0,97690.0,0.78580701]
[1732388015476,0.10329355,97709.0,97690.0,0.78088618]
[1732388017974,0.0788,97708.0,97690.0,0.78088618]
[1732388018204,0.15249365,97707.0,97690.0,0.78088618]
[1732388018645,0.15249365,97707.0,97690.0,0.78174498]
[1732388019521,0.0788,97706.0,97690.0,0.78174498]
[1732388019764,0.13600041,97695.0,97690.0,0.78174498]
[1732388019970,0.18209385,97694.0,97690.0,0.78174498]
[1732388022318,0.0788,97693.0,97690.0,0.78174498]
[1732388022543,0.10329385,97692.0,97690.0,0.78174498]
[1732388022774,0.13600041,97691.0,97690.0,0.76724419]
[1732388022991,0.13600041,97691.0,97690.0,0.86046535]
[1732388022992,0.23929428,97691.0,97690.0,0.86046535]
[1732388023220,0.23801468,97691.0,97690.0,0.86046535]
[1732388028097,0.23801468,97691.0,97690.0,0.57728351]
[1732388028337,0.23801468,97691.0,97690.0,0.33380341]
[1732388028559,0.28541468,97691.0,97690.0,0.33380341]
[1732388030610,0.28541468,97691.0,97690.0,0.32671276]
[1732388030833,0.28541468,97691.0,97690.0,0.32620094]
[1732388037383,0.28541468,97691.0,97690.0,0.31211316]
[1732388042943,0.28713228,97691.0,97690.0,0.31211316]
[1732388046551,0.28713228,97691.0,97690.0,0.30585668]
[1732388048708,0.28713228,97691.0,97690.0,0.30512977]
[1732388053570,0.28713228,97691.0,97690.0,0.2981105]
[1732388055777,0.28713228,97691.0,97690.0,0.29080969]
[1732388056666,0.28713228,97691.0,97690.0,0.09407996]
[1732388056930,0.28713228,97691.0,97690.0,0.0972702]
[1732388057146,0.13600041,97687.0,97669.0,0.09678512]
[1732388057357,0.10329395,97686.0,97670.0,0.023]
[1732388057567,0.10329395,97686.0,97669.0,0.023]
[1732388057803,0.10329395,97686.0,97669.0,0.01592693]
[1732388061011,0.10344799,97686.0,97670.0,0.0215462]
[1732388061676,0.10329395,97686.0,97670.0,0.02139216]
[1732388062137,0.23929436,97686.0,97670.0,0.02139216]
[1732388063091,0.23929436,97686.0,97674.0,0.15]
[1732388063295,0.23929436,97686.0,97674.0,0.42489356]
[1732388063522,0.23929436,97686.0,97676.0,0.15]
[1732388064457,0.23929436,97686.0,97676.0,0.42489356]
[1732388065304,0.23929436,97686.0,97679.0,0.27489356]
[1732388065548,0.23929436,97686.0,97680.0,0.26782473]
[1732388065795,0.23929436,97686.0,97681.0,0.15]
[1732388066023,0.23929436,97686.0,97674.0,0.02123812]
[1732388066949,0.10329395,97686.0,97674.0,0.02123812]
[1732388067193,0.23929436,97686.0,97674.0,0.02123812]
[1732388067409,0.23929436,97686.0,97675.0,0.0471]
[1732388067661,0.23929436,97686.0,97675.0,0.04086236]
[1732388067863,0.23929436,97686.0,97675.0,0.0600523]
[1732388069383,0.23929436,97686.0,97668.0,0.04160804]
[1732388069624,0.23555398,97686.0,97668.0,0.04160804]
[1732388069843,0.00127815,97685.0,97665.0,0.0825]
[1732388070072,0.14741427,97684.0,97665.0,0.0825]
[1732388070281,0.00127815,97683.0,97665.0,0.12451831]
[1732388070535,0.10329242,97683.0,97665.0,0.12451831]
[1732388071404,0.10329242,97683.0,97666.0,0.173]
[1732388072296,0.10329242,97683.0,97667.0,0.0471]
[1732388073981,0.13600041,97686.0,97671.0,0.023]
[1732388074193,0.13600041,97686.0,97672.0,0.0010237]
[1732388074607,0.0454,97689.0,97673.0,0.0010237]
[1732388074813,0.10201427,97688.0,97673.0,0.0010237]
[1732388075325,0.10201427,97688.0,97671.0,0.173]
[1732388075942,0.10201427,97688.0,97671.0,0.57956218]
[1732388076170,0.13600041,97686.0,97671.0,0.57956218]
[1732388076398,0.10329242,97688.0,97671.0,0.57956218]
[1732388076617,0.10201427,97688.0,97671.0,0.57956218]
[1732388076845,0.10201427,97688.0,97671.0,0.173]
[1732388077296,0.10201427,97688.0,97671.0,0.57956218]
[1732388077503,0.10329242,97688.0,97671.0,0.173]
[1732388077717,0.23929283,97688.0,97671.0,0.173]
[1732388078142,0.10329242,97688.0,97672.0,0.40656218]
[1732388078355,0.10329242,97688.0,97675.0,0.15]
[1732388078996,0.13600041,97686.0,97675.0,0.15]
[1732388079258,0.10329242,97688.0,97675.0,0.15]
[1732388079476,0.13600041,97686.0,97670.0,0.07900245]
[1732388079688,0.23929283,97688.0,97670.0,0.07900245]
[1732388079962,0.10329242,97688.0,97670.0,0.07900245]
[1732388080595,0.10329242,97688.0,97687.0,0.40630734]
[1732388080801,0.10201427,97688.0,97687.0,0.09320319]
[1732388081049,0.10201427,97688.0,97687.0,0.09424879]
[1732388081249,0.10201427,97688.0,97687.0,0.50058027]
[1732388081880,0.10201427,97688.0,97687.0,0.09424879]
[1732388082095,0.13600041,97686.0,97682.0,0.40633148]
[1732388082519,0.13600041,97686.0,97671.0,0.15]
[1732388082520,0.13600041,97686.0,97683.0,0.40633148]
[1732388082729,0.10201427,97688.0,97683.0,0.40633148]
[1732388082950,0.10201427,97688.0,97670.0,0.07900245]
[1732388082951,0.13600041,97686.0,97670.0,0.07900245]
[1732388083166,0.10329242,97688.0,97670.0,0.07900245]
[1732388083408,0.10329242,97688.0,97686.0,0.40634566]
[1732388083409,0.13600041,97687.0,97686.0,0.40634566]
[1732388083625,0.13600041,97687.0,97686.0,0.50088002]
[1732388084525,0.13600041,97687.0,97686.0,0.09453436]
[1732388085181,0.13600041,97687.0,97686.0,0.24453436]
[1732388085389,0.13538303,97687.0,97686.0,0.24453436]
[1732388086490,0.10201427,97688.0,97686.0,0.09453436]
[1732388086948,0.13538303,97686.0,97685.0,0.03243071]
[1732388087159,0.13538303,97686.0,97673.0,0.09798433]
[1732388087593,0.10201427,97688.0,97672.0,0.04132825]
[1732388087805,0.10329242,97688.0,97672.0,0.04132825]
[1732388088016,0.10329242,97688.0,97671.0,0.40634566]
[1732388088270,0.13538303,97686.0,97671.0,0.40634566]
[1732388088484,0.10329242,97688.0,97671.0,0.40634566]
[1732388089151,0.10329242,97688.0,97672.0,0.55634566]
[1732388089579,0.10329242,97688.0,97671.0,0.15]
[1732388089798,0.13538303,97686.0,97671.0,0.15]
[1732388090013,0.13538303,97686.0,97672.0,0.0008589]
[1732388090886,0.13710083,97686.0,97672.0,0.0008589]
[1732388091102,0.0017178,97686.0,97672.0,0.0008589]
[1732388091320,0.13710083,97686.0,97672.0,0.0008589]
[1732388091760,0.0017178,97686.0,97672.0,0.0008589]
[1732388092242,0.13710083,97686.0,97672.0,0.0008589]
[1732388095109,0.0017178,97686.0,97672.0,0.0008589]
[1732388095306,0.13710083,97686.0,97672.0,0.0008589]
[1732388096201,0.0017178,97686.0,97672.0,0.0008589]
[1732388096451,0.13710083,97686.0,97672.0,0.0008589]
[1732388097102,0.0017178,97686.0,97683.0,0.15]
[1732388097346,0.0017176,97691.0,97683.0,0.15]
[1732388097553,0.09258028,97700.0,97684.0,0.0489236]
[1732388097774,0.09258028,97705.0,97690.0,0.07900245]
[1732388097991,0.10201427,97704.0,97691.0,0.2326]
[1732388098205,0.0017176,97709.0,97691.0,0.2326]
[1732388098420,0.0017176,97709.0,97692.0,0.19892353]
[1732388098687,0.0017176,97709.0,97699.0,0.07900245]
[1732388098900,0.0017176,97709.0,97694.0,0.00102349]
[1732388099145,0.0017176,97709.0,97694.0,0.00102348]
[1732388099360,0.0017176,97709.0,97693.0,0.15]
[1732388099795,0.09258028,97705.0,97692.0,0.1979]
[1732388100262,0.09258028,97705.0,97692.0,0.18842487]
[1732388101406,0.09258028,97705.0,97691.0,0.00132394]
[1732388101610,0.09258028,97705.0,97690.0,0.07900245]
[1732388101831,0.09258028,97705.0,97681.0,0.023]
[1732388102037,0.09258028,97705.0,97683.0,0.023]
[1732388102941,0.09258028,97705.0,97682.0,0.10201427]
[1732388103578,0.0797,97704.0,97682.0,0.10201427]
[1732388103787,0.0489,97703.0,97682.0,0.10201427]
[1732388104870,0.00127815,97702.0,97681.0,0.1979]
[1732388105327,0.00127815,97702.0,97681.0,0.15]
[1732388105985,0.00127815,97702.0,97680.0,0.04221299]
[1732388106424,0.00127815,97702.0,97690.0,0.07900245]
[1732388106664,0.05017815,97703.0,97681.0,0.15]
[1732388107304,0.00127815,97702.0,97681.0,0.15]
[1732388107529,0.00127815,97702.0,97680.0,0.07900245]
[1732388110229,0.0489,97703.0,97680.0,0.07900245]
[1732388110884,0.05017815,97703.0,97679.0,0.15]
[1732388111095,0.049,97700.0,97678.0,0.04147162]
[1732388111352,0.09258028,97705.0,97678.0,0.04147162]
[1732388111353,0.049,97697.0,97690.0,0.15]
[1732388111572,0.1259,97695.0,97690.0,0.15]
[1732388111818,0.1259,97688.0,97676.0,0.40551347]
[1732388112024,0.07817815,97687.0,97676.0,0.40551347]
[1732388112263,0.1259,97686.0,97674.0,0.40551347]
[1732388112513,0.1259,97686.0,97673.0,0.40551347]
[1732388112514,0.07817815,97685.0,97673.0,0.40551347]
[1732388112767,0.07817815,97685.0,97674.0,0.40551347]
[1732388113214,0.07817815,97685.0,97674.0,0.15]
[1732388113438,0.07817815,97685.0,97676.0,0.15]
[1732388114577,0.07817815,97685.0,97675.0,0.15]
[1732388115049,0.07817815,97685.0,97676.0,0.0008588]
[1732388116572,0.0769,97685.0,97677.0,0.55551347]
[1732388116777,0.0769,97685.0,97677.0,0.15]
[1732388117729,0.0769,97685.0,97677.0,0.55551347]
[1732388118156,0.0769,97685.0,97677.0,0.15]
[1732388118375,0.0769,97685.0,97676.0,0.59717109]
[1732388118587,0.05041001,97685.0,97678.0,0.15]
[1732388119006,0.05041001,97685.0,97672.0,0.0008589]
[1732388119238,0.05168816,97685.0,97672.0,0.0008589]
[1732388120714,0.05168816,97685.0,97672.0,0.04191368]
[1732388121624,0.00127815,97684.0,97672.0,0.04191368]
[1732388124083,0.0769,97681.0,97672.0,0.04191368]
[1732388124293,0.00127815,97680.0,97672.0,0.04191368]
[1732388130252,0.083,97678.0,97672.0,0.04191368]
[1732388130485,0.083,97678.0,97660.0,0.07900245]
[1732388130486,0.00127815,97677.0,97660.0,0.03374798]
[1732388130686,0.00127815,97677.0,97660.0,0.0423366]
[1732388131106,0.00127815,97677.0,97656.0,0.00532202]
[1732388132164,0.00127815,97677.0,97656.0,0.04715318]
[1732388132601,0.00127815,97677.0,97656.0,0.00532202]
[1732388133514,0.0458,97676.0,97656.0,0.00532202]
[1732388133770,0.00127815,97675.0,97656.0,0.00532202]
[1732388136621,0.1288,97674.0,97656.0,0.00532202]
[1732388136893,0.00127815,97673.0,97656.0,0.00532202]
[1732388138433,0.00127815,97673.0,97656.0,0.00118082]
[1732388138866,0.00127815,97673.0,97656.0,0.0008588]
[1732388139524,0.0458,97672.0,97656.0,0.0008588]
[1732388139735,0.08427815,97671.0,97656.0,0.0008588]
[1732388139938,0.0458,97670.0,97656.0,0.0008588]
[1732388140168,0.00127815,97669.0,97656.0,0.0008588]
[1732388140378,0.1288,97668.0,97656.0,0.0008588]
[1732388140677,0.1288,97666.0,97656.0,0.0008588]
[1732388140900,0.08427815,97665.0,97656.0,0.0008588]
[1732388141103,0.0458,97664.0,97656.0,0.0008588]
[1732388141325,0.00127815,97663.0,97656.0,0.0008588]
[1732388141756,0.04707815,97664.0,97656.0,0.0008588]
[1732388144520,0.04707815,97664.0,97656.0,0.1508588]
[1732388146048,0.04707815,97664.0,97656.0,0.0008588]
[1732388147150,0.00127815,97663.0,97656.0,0.0008588]
[1732388148762,0.00127815,97663.0,97657.0,0.15]
[1732388149446,0.0458,97664.0,97657.0,0.15]
[1732388149662,0.00080536,97663.0,97657.0,0.15]
[1732388150090,0.00080536,97663.0,97656.0,0.0008588]
[1732388150775,0.0472,97662.0,97656.0,0.0008588]
[1732388152084,0.0472,97662.0,97657.0,0.15]
[1732388153367,0.0472,97662.0,97656.0,0.0008588]
[1732388153581,0.0472,97662.0,97657.0,0.09633884]
[1732388153793,0.0472,97662.0,97658.0,0.15]
[1732388154494,0.0472,97662.0,97658.0,0.55577251]
[1732388154938,0.0472,97662.0,97658.0,0.15]
[1732388155165,0.0472,97662.0,97656.0,0.0008588]
[1732388157285,0.00080536,97661.0,97656.0,0.0008588]
[1732388159812,0.01112039,97662.0,97656.0,0.0008588]
[1732388162092,0.00786739,97662.0,97656.0,0.0008588]
[1732388168408,0.00786739,97662.0,97650.0,0.07900245]
[1732388169558,0.00786739,97662.0,97641.0,0.15876829]
[1732388169559,0.00786739,97662.0,97641.0,0.20030792]
[1732388169985,0.00786739,97662.0,97650.0,0.07900245]
[1732388175367,0.00786739,97662.0,97650.0,0.07986125]
[1732388175579,0.00958499,97662.0,97650.0,0.07986125]
[1732388176678,0.00958499,97662.0,97650.0,0.07900245]
[1732388183319,0.22671427,97661.0,97641.0,0.0407811]
[1732388183561,0.1247,97658.0,97641.0,0.0407811]
[1732388183779,0.09258028,97659.0,97620.0,0.07900245]
[1732388183780,0.0464,97655.0,97630.0,0.07900245]
[1732388184004,0.10201427,97654.0,97630.0,0.07900245]
[1732388184226,0.0464,97647.0,97630.0,0.07900245]
[1732388184441,0.0464,97645.0,97630.0,0.07900245]
[1732388185540,0.0464,97645.0,97635.0,0.07900245]
[1732388185755,0.0464,97645.0,97630.0,0.07900245]
[1732388187329,0.0464,97645.0,97623.0,0.15]
[1732388187533,0.0464,97645.0,97640.0,0.000859]
[1732388189106,0.0464,97645.0,97640.0,0.04239783]